[Event "European Online Club-ch-A 2021"]
[Site "Online"]
[Date "2021.03.27"]
[Round "3.11"]
[White "Kovacs, Gabor"]
[Black "Nemec, Jachym"]
[Result "1-0"]
[ECO "D02"]
[WhiteElo "2455"]
[BlackElo "2229"]
[Annotator "ChessBase"]
[PlyCount "79"]
[EventDate "2021.03.27"]
[EventType "team-tourn"]
[EventCountry "NET"]
[SourceTitle "playchess.com"]
[Source "ChessBase"]
[SourceQuality "1"]
[TimeControl "900+5"]

1. d4 {[%emt 0:00:00]} Nf6 {[%emt 0:00:06]} 2. Nf3 {[%emt 0:00:03]} g6 {[%emt 0:00:03]} 3. Bf4 {[%emt 0:00:03]} Bg7 {[%emt 0:00:02]} 4. e3 {[%emt 0:00:04]} d5 {[%emt 0:00:03]} 5. Be2 {[%emt 0:00:07]} O-O {[%emt 0:00:02]} 6. h3 {[%emt 0:00:04]} c5 {[%emt 0:00:03]} 7. c3 {[%emt 0:00:03]} Nc6 {[%emt 0:00:02]} 8. O-O {[%emt 0:00:09]} Nd7 {[%emt 0:00:08]} 9. Nbd2 {[%emt 0:00:11]} e5 {[%emt 0:00:04]} 10. dxe5 {[%emt 0:00:02]} Ndxe5 {[%emt 0:00:01]} 11. Qb3 {[%emt 0:00:27]} Be6 {[%emt 0:00:45]} 12. Nxe5 {[%emt 0:00:26]} Nxe5 {[%emt 0:00:04]} 13. Qxb7 {[%emt 0:00:02]} Rb8 {[%emt 0:00:10]} 14. Qxa7 {[%emt 0:00:07]} Rxb2 {[%emt 0:00:04]} 15. Rfd1 {[%emt 0:00:05]} Qa8 {[%emt 0:01:27]} 16. Qxa8 {[%emt 0:01:18]} Rxa8 {[%emt 0:00:02]} 17. a4 {[%emt 0:00:02]} Nc6 {[%emt 0:00:09]} 18. Bb5 {[%emt 0:00:07]} Na5 {[%emt 0:00:11]} 19. Ra3 {[%emt 0:00:48]} c4 {[%emt 0:01:58]} 20. Nf3 {[%emt 0:00:32]} Nb3 {[%emt 0:00:19]} 21. Nd4 {[%emt 0:01:22]} Bf8 {[%emt 0:00:20]} 22. Nxb3 {[%emt 0:00:21]} Bxa3 {[%emt 0:00:04]} 23. Nd4 {[%emt 0:00:03]} Bc5 {[%emt 0:00:18]} 24. Be5 {[%emt 0:00:05]} Kf8 {[%emt 0:01:13]} 25. g4 {[%emt 0:00:53]} h6 {[%emt 0:00:20]} 26. Kg2 {[%emt 0:00:15]} Ra7 {[%emt 0:01:03]} 27. Nc6 {[%emt 0:00:37]} Ra8 {[%emt 0:00:08]} 28. Nd4 {[%emt 0:00:03]} Rc8 {[%emt 0:00:52]} 29. Kg3 {[%emt 0:00:12]} Bxd4 {[%emt 0:00:39]} 30. Bxd4 {[%emt 0:00:22]} Ke7 {[%emt 0:00:03]} 31. h4 {[%emt 0:01:22]} Bd7 {[%emt 0:00:59]} 32. Bxd7 {[%emt 0:00:17]} Kxd7 {[%emt 0:00:03]} 33. Bg7 {[%emt 0:00:00]} Ke6 {[%emt 0:00:11]} 34. Bxh6 {[%emt 0:00:15]} Ra8 {[%emt 0:00:07]} 35. Bg7 {[%emt 0:00:14]} f6 {[%emt 0:01:27]} 36. h5 {[%emt 0:00:04]} Kf7 {[%emt 0:00:04]} 37. h6 {[%emt 0:00:05]} Ra5 {[%emt 0:00:08]} 38. g5 {[%emt 0:00:15]} fxg5 {[%emt 0:00:14]} 39. Rh1 {[%emt 0:00:08]} Ra8 {[%emt 0:00:38]} 40. Bd4 {[%emt 0:00:05]} 1-0

[Event "European Online Club-ch-A 2021"]
[Site "Online"]
[Date "2021.03.27"]
[Round "3.12"]
[White "Smolik, Jachym"]
[Black "Csonka, Attila Istvan"]
[Result "0-1"]
[ECO "D05"]
[WhiteElo "2073"]
[BlackElo "2362"]
[Annotator "NA"]
[PlyCount "138"]
[EventDate "2021.03.27"]
[EventType "team-tourn"]
[EventCountry "NET"]
[SourceTitle "playchess.com"]
[Source "ChessBase"]
[SourceQuality "1"]
[TimeControl "900+5"]

1. d4 {[%emt 0:00:00]} Nf6 {[%emt 0:00:03]} 2. Nf3 {[%emt 0:00:03]} e6 {[%emt 0:00:05]} 3. e3 {[%emt 0:00:02]} b6 {[%emt 0:00:06]} 4. Bd3 {[%emt 0:00:02]} Bb7 {[%emt 0:00:03]} 5. O-O {[%emt 0:00:02]} c5 {[%emt 0:00:07]} 6. b3 {[%emt 0:00:02]} Be7 {[%emt 0:00:05]} 7. Bb2 {[%emt 0:00:03]} O-O {[%emt 0:00:02]} 8. Nbd2 {[%emt 0:00:04]} d5 {[%emt 0:00:02]} 9. Ne5 {[%emt 0:00:09]} Nbd7 {[%emt 0:00:06]} 10. f4 {[%emt 0:00:05]} Ne4 {[%emt 0:00:14]} 11. Bxe4 {[%emt 0:00:45]} dxe4 {[%emt 0:00:03]} 12. Qe2 {[%emt 0:01:02]} f5 {[%emt 0:01:23]} 13. Rfd1 {[%emt 0:00:35]} Nxe5 {[%emt 0:01:18]} 14. dxe5 {[%emt 0:00:06]} Qc7 {[%emt 0:00:10]} 15. c4 {[%emt 0:00:21]} Rad8 {[%emt 0:00:05]} 16. Nf1 {[%emt 0:01:09]} Rd3 {[%emt 0:00:06]} 17. Rxd3 {[%emt 0:00:24]} exd3 {[%emt 0:00:03]} 18. Qxd3 {[%emt 0:00:01]} Rd8 {[%emt 0:00:02]} 19. Qe2 {[%emt 0:00:05]} Qd7 {[%emt 0:00:03]} 20. Bc3 {[%emt 0:00:25]} g6 {[%emt 0:00:48]} 21. Rc1 {[%emt 0:00:40]} Kf7 {[%emt 0:00:09]} 22. Rc2 {[%emt 0:00:22]} Be4 {[%emt 0:01:07]} 23. Rd2 {[%emt 0:00:06]} Qc7 {[%emt 0:01:26]} 24. Ng3 {[%emt 0:00:51]} Rxd2 {[%emt 0:00:53]} 25. Qxd2 {[%emt 0:00:05]} Bb7 {[%emt 0:00:52]} 26. Nf1 {[%emt 0:01:25]} Qc6 {[%emt 0:00:11]} 27. Qc2 {[%emt 0:00:24]} Bh4 {[%emt 0:00:12]} 28. h3 {[%emt 0:01:06]} a6 {[%emt 0:00:19]} 29. Nh2 {[%emt 0:00:55]} h6 {[%emt 0:00:42]} 30. Nf3 {[%emt 0:00:12]} Be7 {[%emt 0:00:03]} 31. Be1 {[%emt 0:00:45]} g5 {[%emt 0:00:35]} 32. Bg3 {[%emt 0:00:57]} b5 {[%emt 0:00:28]} 33. Qe2 {[%emt 0:00:50]} b4 {[%emt 0:00:11]} 34. Nd2 {[%emt 0:00:45]} Kg6 {[%emt 0:00:07]} 35. Qf3 {[%emt 0:00:46]} Qd7 {[%emt 0:00:10]} 36. Qe2 {[%emt 0:00:02]} a5 {[%emt 0:01:28]} 37. Kf1 {[%emt 0:01:01]} Bc6 {[%emt 0:00:20]} 38. Bf2 {[%emt 0:00:28]} Qb7 {[%emt 0:00:13]} 39. Bg1 {[%emt 0:00:17]} a4 {[%emt 0:00:40]} 40. g4 {[%emt 0:00:27]} axb3 {[%emt 0:00:12]} 41. axb3 {[%emt 0:00:02]} Qa8 {[%emt 0:00:12]} 42. gxf5+ {[%emt 0:00:15]} exf5 {[%emt 0:00:03]} 43. Kf2 {[%emt 0:00:14]} gxf4 {[%emt 0:00:26]} 44. exf4 {[%emt 0:00:03]} Bh4+ {[%emt 0:00:02]} 45. Ke3 {[%emt 0:00:12]} Qa1 {[%emt 0:00:04]} 46. Nf3 {[%emt 0:00:02]} Bxf3 {[%emt 0:00:27]} 47. Kxf3 {[%emt 0:00:06]} Qxg1 {[%emt 0:00:04]} 48. Qg2+ {[%emt 0:00:04]} Qxg2+ {[%emt 0:00:02]} 49. Kxg2 {[%emt 0:00:02]} Kh5 {[%emt 0:00:27]} 50. Kf3 {[%emt 0:00:03]} Be7 {[%emt 0:00:06]} 51. Kg3 {[%emt 0:00:03]} Kg6 {[%emt 0:00:20]} 52. Kf3 {[%emt 0:00:07]} Kf7 {[%emt 0:00:02]} 53. Kg3 {[%emt 0:00:02]} Ke6 {[%emt 0:00:02]} 54. Kf3 {[%emt 0:00:13]} h5 {[%emt 0:00:02]} 55. Kg3 {[%emt 0:00:04]} h4+ {[%emt 0:00:01]} 56. Kf3 {[%emt 0:00:02]} Bf8 {[%emt 0:00:02]} 57. Ke3 {[%emt 0:00:02]} Bg7 {[%emt 0:00:01]} 58. Kf3 {[%emt 0:00:02]} Bxe5 {[%emt 0:00:01]} 59. Ke3 {[%emt 0:00:02]} Bxf4+ {[%emt 0:00:02]} 60. Kxf4 {[%emt 0:00:01]} Kf6 {[%emt 0:00:02]} 61. Kf3 {[%emt 0:00:02]} Ke5 {[%emt 0:00:01]} 62. Ke3 {[%emt 0:00:01]} f4+ {[%emt 0:00:01]} 63. Kf3 {[%emt 0:00:02]} Kf5 {[%emt 0:00:02]} 64. Kf2 {[%emt 0:00:01]} Ke4 {[%emt 0:00:01]} 65. Ke2 {[%emt 0:00:01]} f3+ {[%emt 0:00:03]} 66. Kf2 {[%emt 0:00:02]} Kf4 {[%emt 0:00:02]} 67. Kf1 {[%emt 0:00:02]} Kg3 {[%emt 0:00:02]} 68. Kg1 {[%emt 0:00:03]} Kxh3 {[%emt 0:00:01]} 69. Kf2 {[%emt 0:00:01]} Kg4 {[%emt 0:00:01]} 0-1

[Event "European Online Club-ch-A 2021"]
[Site "Online"]
[Date "2021.03.27"]
[Round "3.13"]
[White "Schmidek, Emil"]
[Black "Celik, Hasan Huseyin"]
[Result "1/2-1/2"]
[ECO "D10"]
[WhiteElo "2402"]
[BlackElo "2173"]
[Annotator "NA"]
[PlyCount "158"]
[EventDate "2021.03.27"]
[EventType "team-tourn"]
[EventCountry "NET"]
[SourceTitle "playchess.com"]
[Source "ChessBase"]
[SourceQuality "1"]
[TimeControl "900+5"]

1. d4 {[%emt 0:00:00]} d5 {[%emt 0:00:04]} 2. c4 {[%emt 0:00:03]} c6 {[%emt 0:00:02]} 3. Nc3 {[%emt 0:00:02]} dxc4 {[%emt 0:00:02]} 4. e4 {[%emt 0:00:03]} b5 {[%emt 0:00:02]} 5. a4 {[%emt 0:00:01]} b4 {[%emt 0:00:02]} 6. Nce2 {[%emt 0:00:01]} a5 {[%emt 0:00:16]} 7. Ng3 {[%emt 0:00:05]} Ba6 {[%emt 0:00:01]} 8. Nf3 {[%emt 0:00:02]} e6 {[%emt 0:00:02]} 9. Be3 {[%emt 0:00:27]} Nf6 {[%emt 0:00:02]} 10. Ne5 {[%emt 0:00:09]} Nbd7 {[%emt 0:01:03]} 11. Nxc4 {[%emt 0:00:15]} Be7 {[%emt 0:00:02]} 12. Rc1 {[%emt 0:00:14]} O-O {[%emt 0:00:03]} 13. Be2 {[%emt 0:00:36]} Rc8 {[%emt 0:00:12]} 14. O-O {[%emt 0:00:39]} c5 {[%emt 0:00:24]} 15. d5 {[%emt 0:00:48]} exd5 {[%emt 0:00:05]} 16. exd5 {[%emt 0:00:02]} Bxc4 {[%emt 0:00:01]} 17. Bxc4 {[%emt 0:00:03]} Ne5 {[%emt 0:00:05]} 18. Nf5 {[%emt 0:01:45]} Ne4 {[%emt 0:04:08]} 19. Ba6 {[%emt 0:06:31]} Rc7 {[%emt 0:00:58]} 20. f4 {[%emt 0:03:55]} Ng6 {[%emt 0:00:21]} 21. Re1 {[%emt 0:00:48]} Bd6 {[%emt 0:00:30]} 22. Bd3 {[%emt 0:00:12]} Nf6 {[%emt 0:00:46]} 23. Nxd6 {[%emt 0:00:03]} Qxd6 {[%emt 0:00:02]} 24. Bxg6 {[%emt 0:00:01]} hxg6 {[%emt 0:00:03]} 25. Qf3 {[%emt 0:00:11]} Rfc8 {[%emt 0:00:11]} 26. b3 {[%emt 0:00:07]} Qxd5 {[%emt 0:00:03]} 27. Qxd5 {[%emt 0:00:05]} Nxd5 {[%emt 0:00:03]} 28. Bf2 {[%emt 0:00:01]} Nxf4 {[%emt 0:00:05]} 29. Rc4 {[%emt 0:00:05]} Nd3 {[%emt 0:00:18]} 30. Re3 {[%emt 0:00:01]} Nxf2 {[%emt 0:00:06]} 31. Kxf2 {[%emt 0:00:01]} Rd7 {[%emt 0:00:01]} 32. Re5 {[%emt 0:00:02]} Rd2+ {[%emt 0:00:07]} 33. Kf1 {[%emt 0:00:03]} Rb2 {[%emt 0:00:21]} 34. Rexc5 {[%emt 0:00:04]} Rd8 {[%emt 0:00:32]} 35. Rc8 {[%emt 0:00:05]} Rxc8 {[%emt 0:00:04]} 36. Rxc8+ {[%emt 0:00:00]} Kh7 {[%emt 0:00:02]} 37. Ra8 {[%emt 0:00:02]} Rxb3 {[%emt 0:00:04]} 38. Rxa5 {[%emt 0:00:02]} Ra3 {[%emt 0:00:02]} 39. Kf2 {[%emt 0:00:16]} f5 {[%emt 0:00:06]} 40. Ra7 {[%emt 0:00:15]} g5 {[%emt 0:00:02]} 41. a5 {[%emt 0:00:02]} Kg6 {[%emt 0:00:03]} 42. Rb7 {[%emt 0:00:03]} Rxa5 {[%emt 0:00:08]} 43. Rxb4 {[%emt 0:00:02]} g4 {[%emt 0:00:02]} 44. Kg3 {[%emt 0:00:10]} Ra2 {[%emt 0:00:08]} 45. Rb7 {[%emt 0:00:14]} Kh6 {[%emt 0:00:05]} 46. Rb6+ {[%emt 0:00:03]} Kg5 {[%emt 0:00:04]} 47. h4+ {[%emt 0:00:02]} gxh3 {[%emt 0:00:01]} 48. Kxh3 {[%emt 0:00:01]} Kh5 {[%emt 0:00:12]} 49. Rb5 {[%emt 0:00:04]} g6 {[%emt 0:00:05]} 50. g4+ {[%emt 0:00:03]} Kg5 {[%emt 0:00:02]} 51. gxf5 {[%emt 0:00:01]} gxf5 {[%emt 0:00:01]} 52. Kg3 {[%emt 0:00:02]} Ra3+ {[%emt 0:00:02]} 53. Kf2 {[%emt 0:00:06]} Kg4 {[%emt 0:00:03]} 54. Rb8 {[%emt 0:00:15]} Rc3 {[%emt 0:00:10]} 55. Ra8 {[%emt 0:00:04]} Rc2+ {[%emt 0:00:02]} 56. Kf1 {[%emt 0:00:05]} Kg3 {[%emt 0:00:05]} 57. Ra3+ {[%emt 0:00:03]} Kg4 {[%emt 0:00:02]} 58. Rb3 {[%emt 0:00:02]} f4 {[%emt 0:00:01]} 59. Ra3 {[%emt 0:00:01]} Rd2 {[%emt 0:00:05]} 60. Rb3 {[%emt 0:00:04]} Ra2 {[%emt 0:00:01]} 61. Rc3 {[%emt 0:00:01]} Ra8 {[%emt 0:00:02]} 62. Kf2 {[%emt 0:00:09]} Rd8 {[%emt 0:00:02]} 63. Ra3 {[%emt 0:00:03]} Rb8 {[%emt 0:00:10]} 64. Kg2 {[%emt 0:00:06]} Rb4 {[%emt 0:00:04]} 65. Kf2 {[%emt 0:00:02]} Rb2+ {[%emt 0:00:18]} 66. Kf1 {[%emt 0:00:03]} Rc2 {[%emt 0:00:01]} 67. Rb3 {[%emt 0:00:02]} Ra2 {[%emt 0:00:02]} 68. Rc3 {[%emt 0:00:01]} Ra4 {[%emt 0:00:14]} 69. Kf2 {[%emt 0:00:04]} f3 {[%emt 0:00:02]} 70. Rc8 {[%emt 0:00:02]} Ra2+ {[%emt 0:00:02]} 71. Kf1 {[%emt 0:00:01]} Ra5 {[%emt 0:00:03]} 72. Rg8+ {[%emt 0:00:06]} Rg5 {[%emt 0:00:03]} 73. Rxg5+ {[%emt 0:00:04]} Kxg5 {[%emt 0:00:02]} 74. Kf2 {[%emt 0:00:01]} Kf4 {[%emt 0:00:01]} 75. Kf1 {[%emt 0:00:06]} Ke4 {[%emt 0:00:01]} 76. Kf2 {[%emt 0:00:02]} Kf4 {[%emt 0:00:01]} 77. Kf1 {[%emt 0:00:01]} Kg3 {[%emt 0:00:02]} 78. Kg1 {[%emt 0:00:02]} f2+ {[%emt 0:00:01]} 79. Kf1 {[%emt 0:00:01]} Kf3 {[%emt 0:00:01]} 1/2-1/2

[Event "European Online Club-ch-A 2021"]
[Site "Online"]
[Date "2021.03.27"]
[Round "3.14"]
[White "Durak, Can"]
[Black "Agopov, Mikael"]
[Result "0-1"]
[ECO "E51"]
[WhiteElo "2187"]
[BlackElo "2427"]
[Annotator "NA"]
[PlyCount "100"]
[EventDate "2021.03.27"]
[EventType "team-tourn"]
[EventCountry "NET"]
[SourceTitle "playchess.com"]
[Source "ChessBase"]
[SourceQuality "1"]
[TimeControl "900+5"]

1. d4 {[%emt 0:00:00]} Nf6 {[%emt 0:00:03]} 2. c4 {[%emt 0:00:02]} e6 {[%emt 0:00:01]} 3. Nc3 {[%emt 0:00:03]} Bb4 {[%emt 0:00:02]} 4. e3 {[%emt 0:00:03]} O-O {[%emt 0:00:03]} 5. Bd2 {[%emt 0:00:01]} b6 {[%emt 0:00:11]} 6. Nf3 {[%emt 0:00:04]} Bb7 {[%emt 0:00:03]} 7. Rc1 {[%emt 0:00:02]} d5 {[%emt 0:00:04]} 8. cxd5 {[%emt 0:00:02]} exd5 {[%emt 0:00:02]} 9. Be2 {[%emt 0:00:01]} a6 {[%emt 0:00:09]} 10. O-O {[%emt 0:00:03]} Nbd7 {[%emt 0:00:09]} 11. Ne5 {[%emt 0:00:02]} Nxe5 {[%emt 0:01:24]} 12. dxe5 {[%emt 0:00:03]} Nd7 {[%emt 0:00:02]} 13. Nxd5 {[%emt 0:00:05]} Bxd2 {[%emt 0:00:08]} 14. Qxd2 {[%emt 0:00:02]} Nxe5 {[%emt 0:00:02]} 15. Rfd1 {[%emt 0:00:02]} c5 {[%emt 0:02:17]} 16. Qc3 {[%emt 0:00:14]} Ng6 {[%emt 0:00:11]} 17. Bf3 {[%emt 0:00:28]} Ra7 {[%emt 0:00:29]} 18. Nf4 {[%emt 0:01:08]} Qe7 {[%emt 0:03:08]} 19. Bxb7 {[%emt 0:01:36]} Rxb7 {[%emt 0:00:15]} 20. Nh5 {[%emt 0:01:48]} Qe5 {[%emt 0:00:17]} 21. Rd5 {[%emt 0:00:25]} Qxc3 {[%emt 0:00:23]} 22. bxc3 {[%emt 0:00:32]} Ne7 {[%emt 0:01:39]} 23. Rd2 {[%emt 0:00:03]} g6 {[%emt 0:00:08]} 24. Nf4 {[%emt 0:00:03]} b5 {[%emt 0:00:26]} 25. Rd6 {[%emt 0:01:32]} Ra8 {[%emt 0:00:07]} 26. Nd3 {[%emt 0:00:46]} Rc7 {[%emt 0:01:06]} 27. g3 {[%emt 0:00:42]} Kg7 {[%emt 0:01:08]} 28. Kg2 {[%emt 0:00:59]} Nc8 {[%emt 0:00:41]} 29. Rd5 {[%emt 0:01:02]} c4 {[%emt 0:00:05]} 30. Nb4 {[%emt 0:00:03]} Ne7 {[%emt 0:00:46]} 31. Rd6 {[%emt 0:00:34]} a5 {[%emt 0:00:03]} 32. Nc2 {[%emt 0:00:02]} Rb8 {[%emt 0:00:11]} 33. Rb1 {[%emt 0:00:11]} Rc5 {[%emt 0:00:38]} 34. Ra6 {[%emt 0:00:07]} b4 {[%emt 0:00:57]} 35. cxb4 {[%emt 0:00:03]} axb4 {[%emt 0:00:02]} 36. Rxb4 {[%emt 0:00:21]} Rd8 {[%emt 0:00:02]} 37. Raa4 {[%emt 0:00:20]} Rd2 {[%emt 0:00:04]} 38. Na3 {[%emt 0:03:44]} Rf5 {[%emt 0:00:26]} 39. Nxc4 {[%emt 0:00:16]} Rdxf2+ {[%emt 0:00:10]} 40. Kg1 {[%emt 0:00:03]} Rf1+ {[%emt 0:00:02]} 41. Kg2 {[%emt 0:00:02]} R5f2+ {[%emt 0:00:02]} 42. Kh3 {[%emt 0:00:02]} Rh1 {[%emt 0:00:01]} 43. g4 {[%emt 0:00:21]} Rhxh2+ {[%emt 0:00:08]} 44. Kg3 {[%emt 0:00:01]} Nd5 {[%emt 0:00:07]} 45. Rb3 {[%emt 0:00:14]} Nf6 {[%emt 0:00:04]} 46. Nd6 {[%emt 0:00:11]} h5 {[%emt 0:00:09]} 47. gxh5 {[%emt 0:00:15]} Nxh5+ {[%emt 0:00:02]} 48. Kg4 {[%emt 0:00:02]} Rhg2+ {[%emt 0:00:04]} 49. Kh3 {[%emt 0:00:02]} Rg3+ {[%emt 0:00:01]} 50. Kh4 {[%emt 0:00:02]} Rh2# {[%emt 0:00:02]} 0-1

[Event "European Online Club-ch-A 2021"]
[Site "Online"]
[Date "2021.03.27"]
[Round "3.15"]
[White "Wintzer, Joachim"]
[Black "Emir, Doruk"]
[Result "1-0"]
[ECO "E54"]
[WhiteElo "2274"]
[BlackElo "1852"]
[Annotator "NA"]
[PlyCount "105"]
[EventDate "2021.03.27"]
[EventType "team-tourn"]
[EventCountry "NET"]
[SourceTitle "playchess.com"]
[Source "ChessBase"]
[SourceQuality "1"]
[TimeControl "900+5"]

1. d4 {[%emt 0:00:00]} d5 {[%emt 0:00:11]} 2. c4 {[%emt 0:00:07]} dxc4 {[%emt 0:00:04]} 3. e3 {[%emt 0:00:04]} Nf6 {[%emt 0:00:08]} 4. Bxc4 {[%emt 0:00:04]} e6 {[%emt 0:00:01]} 5. Nf3 {[%emt 0:00:03]} c5 {[%emt 0:00:13]} 6. O-O {[%emt 0:00:04]} cxd4 {[%emt 0:00:11]} 7. exd4 {[%emt 0:00:17]} Be7 {[%emt 0:00:27]} 8. Qe2 {[%emt 0:00:54]} O-O {[%emt 0:00:11]} 9. Nc3 {[%emt 0:00:32]} b6 {[%emt 0:02:12]} 10. Bg5 {[%emt 0:00:34]} Bb7 {[%emt 0:01:33]} 11. Rad1 {[%emt 0:00:07]} Nbd7 {[%emt 0:00:14]} 12. Rfe1 {[%emt 0:00:09]} Kh8 {[%emt 0:00:26]} 13. d5 {[%emt 0:04:14]} b5 {[%emt 0:04:58]} 14. Bxb5 {[%emt 0:01:18]} Nb6 {[%emt 0:00:55]} 15. dxe6 {[%emt 0:00:15]} Qc8 {[%emt 0:00:18]} 16. exf7 {[%emt 0:00:20]} Qg4 {[%emt 0:00:12]} 17. h3 {[%emt 0:01:57]} Qf5 {[%emt 0:01:49]} 18. Bd3 {[%emt 0:01:48]} Qa5 {[%emt 0:00:56]} 19. Qe5 {[%emt 0:00:21]} Qxe5 {[%emt 0:00:28]} 20. Nxe5 {[%emt 0:00:01]} Bd6 {[%emt 0:00:11]} 21. Nb5 {[%emt 0:00:34]} Bb4 {[%emt 0:00:06]} 22. Bd2 {[%emt 0:00:54]} Bxd2 {[%emt 0:00:52]} 23. Rxd2 {[%emt 0:00:01]} Rad8 {[%emt 0:00:01]} 24. Rc2 {[%emt 0:01:02]} Nbd5 {[%emt 0:00:07]} 25. a3 {[%emt 0:00:16]} Nf4 {[%emt 0:00:03]} 26. Bf1 {[%emt 0:00:03]} Ne4 {[%emt 0:00:11]} 27. Rc7 {[%emt 0:00:26]} Ba8 {[%emt 0:00:04]} 28. Rxa7 {[%emt 0:00:14]} Ng5 {[%emt 0:00:10]} 29. Nc7 {[%emt 0:00:18]} Bc6 {[%emt 0:00:05]} 30. Nxc6 {[%emt 0:00:06]} Nfxh3+ {[%emt 0:00:01]} 31. gxh3 {[%emt 0:00:06]} Nf3+ {[%emt 0:00:01]} 32. Kh1 {[%emt 0:00:02]} Nxe1 {[%emt 0:00:01]} 33. Nxd8 {[%emt 0:00:01]} h6 {[%emt 0:00:10]} 34. Nce6 {[%emt 0:00:04]} Rxf7 {[%emt 0:00:07]} 35. Nxf7+ {[%emt 0:00:03]} Kh7 {[%emt 0:00:01]} 36. Ne5 {[%emt 0:00:02]} h5 {[%emt 0:00:03]} 37. Rc7 {[%emt 0:00:05]} Kh6 {[%emt 0:00:03]} 38. Rc1 {[%emt 0:00:02]} h4 {[%emt 0:00:01]} 39. Rxe1 {[%emt 0:00:01]} Kh5 {[%emt 0:00:05]} 40. a4 {[%emt 0:00:03]} g5 {[%emt 0:00:02]} 41. a5 {[%emt 0:00:01]} g4 {[%emt 0:00:01]} 42. hxg4+ {[%emt 0:00:01]} Kh6 {[%emt 0:00:02]} 43. Bh3 {[%emt 0:00:02]} Kh7 {[%emt 0:00:02]} 44. f4 {[%emt 0:00:02]} Kh6 {[%emt 0:00:01]} 45. a6 {[%emt 0:00:02]} Kh7 {[%emt 0:00:02]} 46. a7 {[%emt 0:00:01]} Kh6 {[%emt 0:00:09]} 47. b4 {[%emt 0:00:03]} Kh7 {[%emt 0:00:06]} 48. b5 {[%emt 0:00:01]} Kh6 {[%emt 0:00:02]} 49. b6 {[%emt 0:00:01]} Kh7 {[%emt 0:00:01]} 50. b7 {[%emt 0:00:01]} Kh6 {[%emt 0:00:01]} 51. a8=Q {[%emt 0:00:03]} Kh7 {[%emt 0:00:01]} 52. b8=Q {[%emt 0:00:02]} Kh6 {[%emt 0:00:01]} 53. Qh8# {[%emt 0:00:02]} 1-0

[Event "European Online Club-ch-A 2021"]
[Site "Online"]
[Date "2021.03.27"]
[Round "3.16"]
[White "Tinmaz, Kerem"]
[Black "Noetzel, Felix"]
[Result "1-0"]
[ECO "B31"]
[WhiteElo "1614"]
[BlackElo "2263"]
[Annotator "NA"]
[PlyCount "79"]
[EventDate "2021.03.27"]
[EventType "team-tourn"]
[EventCountry "NET"]
[SourceTitle "playchess.com"]
[Source "ChessBase"]
[SourceQuality "1"]
[TimeControl "900+5"]

1. e4 {[%emt 0:00:00]} c5 {[%emt 0:00:03]} 2. Nf3 {[%emt 0:00:23]} Nc6 {[%emt 0:00:02]} 3. Bb5 {[%emt 0:00:06]} g6 {[%emt 0:00:03]} 4. Bxc6 {[%emt 0:00:08]} bxc6 {[%emt 0:00:02]} 5. Nc3 {[%emt 0:00:12]} Bg7 {[%emt 0:00:06]} 6. d3 {[%emt 0:00:02]} Nf6 {[%emt 0:00:25]} 7. Bd2 {[%emt 0:00:13]} O-O {[%emt 0:00:24]} 8. Qc1 {[%emt 0:00:08]} Re8 {[%emt 0:02:17]} 9. Bh6 {[%emt 0:00:22]} Bh8 {[%emt 0:00:02]} 10. h3 {[%emt 0:00:57]} e5 {[%emt 0:01:49]} 11. O-O {[%emt 0:00:24]} d5 {[%emt 0:00:08]} 12. Re1 {[%emt 0:00:31]} Qd6 {[%emt 0:01:03]} 13. Qd2 {[%emt 0:01:40]} Rb8 {[%emt 0:01:01]} 14. b3 {[%emt 0:00:16]} Rb7 {[%emt 0:00:37]} 15. Rad1 {[%emt 0:01:25]} Rbe7 {[%emt 0:00:17]} 16. Na4 {[%emt 0:01:39]} Nd7 {[%emt 0:00:19]} 17. Qc3 {[%emt 0:00:34]} f5 {[%emt 0:03:56]} 18. Bc1 {[%emt 0:00:55]} fxe4 {[%emt 0:00:42]} 19. dxe4 {[%emt 0:00:03]} Rf7 {[%emt 0:00:17]} 20. Ba3 {[%emt 0:01:00]} d4 {[%emt 0:00:12]} 21. Qc4 {[%emt 0:00:34]} Nb6 {[%emt 0:00:11]} 22. Nxb6 {[%emt 0:01:00]} axb6 {[%emt 0:00:02]} 23. Ng5 {[%emt 0:00:19]} Be6 {[%emt 0:00:02]} 24. Nxf7 {[%emt 0:00:25]} Bxf7 {[%emt 0:00:02]} 25. Qa6 {[%emt 0:00:24]} Rb8 {[%emt 0:00:45]} 26. Rd3 {[%emt 0:00:17]} Be6 {[%emt 0:00:03]} 27. Rf3 {[%emt 0:00:18]} Bg7 {[%emt 0:00:20]} 28. Bc1 {[%emt 0:00:18]} Qc7 {[%emt 0:00:20]} 29. Bg5 {[%emt 0:00:28]} h6 {[%emt 0:01:27]} 30. Bf6 {[%emt 0:00:14]} Rf8 {[%emt 0:00:01]} 31. Bxg7 {[%emt 0:00:25]} Kxg7 {[%emt 0:00:00]} 32. Rxf8 {[%emt 0:00:11]} Kxf8 {[%emt 0:00:01]} 33. a4 {[%emt 0:00:27]} Kg7 {[%emt 0:00:07]} 34. a5 {[%emt 0:00:21]} bxa5 {[%emt 0:00:16]} 35. Ra1 {[%emt 0:00:04]} d3 {[%emt 0:00:24]} 36. Qxd3 {[%emt 0:00:07]} Qf7 {[%emt 0:00:05]} 37. Rxa5 {[%emt 0:00:07]} g5 {[%emt 0:00:01]} 38. Rxc5 {[%emt 0:00:05]} Qf4 {[%emt 0:00:04]} 39. Rxc6 {[%emt 0:00:13]} Bf7 {[%emt 0:00:06]} 40. Qe3 {[%emt 0:00:19]} 1-0

[Event "European Online Club-ch-A 2021"]
[Site "Online"]
[Date "2021.03.27"]
[Round "3.17"]
[White "Zavgorodniy, Sergiy"]
[Black "Valdes Escobar, Alvaro"]
[Result "1-0"]
[ECO "B50"]
[WhiteElo "2418"]
[BlackElo "2355"]
[Annotator "NA"]
[PlyCount "53"]
[EventDate "2021.03.27"]
[EventType "team-tourn"]
[EventCountry "NET"]
[SourceTitle "playchess.com"]
[Source "ChessBase"]
[SourceQuality "1"]
[TimeControl "900+5"]

1. e4 {[%emt 0:00:00]} c5 {[%emt 0:00:04]} 2. Nf3 {[%emt 0:00:04]} d6 {[%emt 0:00:04]} 3. c3 {[%emt 0:00:04]} Nf6 {[%emt 0:00:03]} 4. Bc4 {[%emt 0:00:05]} Nxe4 {[%emt 0:00:18]} 5. Qa4+ {[%emt 0:00:03]} Nc6 {[%emt 0:00:03]} 6. Bxf7+ {[%emt 0:00:03]} Kxf7 {[%emt 0:00:02]} 7. Qxe4 {[%emt 0:00:02]} d5 {[%emt 0:00:06]} 8. Qf4+ {[%emt 0:00:52]} Kg8 {[%emt 0:00:21]} 9. d4 {[%emt 0:00:39]} cxd4 {[%emt 0:00:19]} 10. cxd4 {[%emt 0:00:05]} e6 {[%emt 0:00:12]} 11. O-O {[%emt 0:02:08]} Bd6 {[%emt 0:00:11]} 12. Qe3 {[%emt 0:00:11]} h6 {[%emt 0:01:00]} 13. Re1 {[%emt 0:00:12]} Bd7 {[%emt 0:01:30]} 14. Nc3 {[%emt 0:00:29]} Rc8 {[%emt 0:02:13]} 15. Bd2 {[%emt 0:00:27]} Qe8 {[%emt 0:01:59]} 16. Ne2 {[%emt 0:01:36]} Qf7 {[%emt 0:01:14]} 17. b4 {[%emt 0:01:23]} Kh7 {[%emt 0:01:11]} 18. Qd3+ {[%emt 0:01:38]} Qg6 {[%emt 0:00:39]} 19. Qxg6+ {[%emt 0:00:03]} Kxg6 {[%emt 0:00:02]} 20. b5 {[%emt 0:00:06]} Ne7 {[%emt 0:00:13]} 21. Bf4 {[%emt 0:00:26]} Bxf4 {[%emt 0:01:17]} 22. Nxf4+ {[%emt 0:00:04]} Kf5 {[%emt 0:03:28]} 23. g3 {[%emt 0:00:04]} g5 {[%emt 0:00:14]} 24. Nh5 {[%emt 0:01:50]} Kg6 {[%emt 0:00:05]} 25. g4 {[%emt 0:00:24]} Kf7 {[%emt 0:00:03]} 26. Ne5+ {[%emt 0:00:06]} Ke8 {[%emt 0:00:02]} 27. Nf6+ {[%emt 0:00:03]} 1-0